fUSD/lending_fUSD_20260616
["ID","MTS","AMOUNT","RATE_DAILY","PERIOD"]
[425188515,1781565049000,-4388.91,0.00014999,2]
[425188520,1781565049000,-300.0,0.00014999,2]
[425188540,1781565049000,-151.0,0.00015,2]
[425188517,1781565049000,-4388.91,0.00014999,2]
[425188525,1781565049000,-673.03,0.00015,2]
[425188527,1781565049000,-151.0,0.00015,2]
[425188528,1781565049000,-151.0,0.00015,2]
[425188530,1781565049000,-151.0,0.00015,2]
[425188532,1781565049000,-3101.633817,0.00015,2]
[425188526,1781565049000,-151.0,0.00015,2]
[425188533,1781565049000,-3101.633817,0.00015,2]
[425188529,1781565049000,-151.0,0.00015,2]
[425188534,1781565049000,-3101.633817,0.00015,2]
[425188531,1781565049000,-151.0,0.00015,2]
[425188535,1781565049000,-3101.633817,0.00015,2]
[425188541,1781565049000,-151.0,0.00015,2]
[425188524,1781565049000,-2447105.53463005,0.00015,2]
[425188565,1781565049000,-1794.78,0.000163,2]
[425188625,1781565049000,-838.12035653,0.00016438,2]
[425188571,1781565049000,-838.12035653,0.00016438,2]
[425188594,1781565049000,-838.12035653,0.00016438,2]
[425188601,1781565049000,-838.12035653,0.00016438,2]
[425188604,1781565049000,-838.12035653,0.00016438,2]
[425188602,1781565049000,-838.12035653,0.00016438,2]
[425188603,1781565049000,-838.12035653,0.00016438,2]
[425188606,1781565049000,-838.12035653,0.00016438,2]
[425188613,1781565049000,-838.12035653,0.00016438,2]
[425188612,1781565049000,-838.12035653,0.00016438,2]
[425188614,1781565049000,-838.12035653,0.00016438,2]
[425188605,1781565049000,-838.12035653,0.00016438,2]
[425188615,1781565049000,-838.12035653,0.00016438,2]
[425188610,1781565049000,-838.12035653,0.00016438,2]
[425188600,1781565049000,-838.12035653,0.00016438,2]
[425188609,1781565049000,-838.12035653,0.00016438,2]
[425188611,1781565049000,-838.12035653,0.00016438,2]
[425188618,1781565049000,-838.12035653,0.00016438,2]
[425188616,1781565049000,-838.12035653,0.00016438,2]
[425188619,1781565049000,-838.12035653,0.00016438,2]
[425188617,1781565049000,-838.12035653,0.00016438,2]
[425188621,1781565049000,-838.12035653,0.00016438,2]
[425188620,1781565049000,-838.12035653,0.00016438,2]
[425188623,1781565049000,-838.12035653,0.00016438,2]
[425188622,1781565049000,-838.12035653,0.00016438,2]
[425188624,1781565049000,-838.12035653,0.00016438,2]
[425188626,1781565049000,-838.12035653,0.00016438,2]
[425188568,1781565049000,-1433.8,0.00016438,2]
[425188608,1781565049000,-838.12035653,0.00016438,2]
[425188599,1781565049000,-838.12035653,0.00016438,2]
[425188607,1781565049000,-838.12035653,0.00016438,2]
[425188597,1781565049000,-838.12035653,0.00016438,2]
[425188598,1781565049000,-838.12035653,0.00016438,2]
[425188572,1781565049000,-838.12035653,0.00016438,2]
[425188569,1781565049000,-838.12035653,0.00016438,2]
[425188570,1781565049000,-838.12035653,0.00016438,2]
[425188573,1781565049000,-838.12035653,0.00016438,2]
[425188574,1781565049000,-838.12035653,0.00016438,2]
[425188577,1781565049000,-838.12035653,0.00016438,2]
[425188576,1781565049000,-838.12035653,0.00016438,2]
[425188580,1781565049000,-838.12035653,0.00016438,2]
[425188579,1781565049000,-838.12035653,0.00016438,2]
[425188578,1781565049000,-838.12035653,0.00016438,2]
[425188582,1781565049000,-838.12035653,0.00016438,2]
[425188585,1781565049000,-838.12035653,0.00016438,2]
[425188575,1781565049000,-838.12035653,0.00016438,2]
[425188584,1781565049000,-838.12035653,0.00016438,2]
[425188581,1781565049000,-838.12035653,0.00016438,2]
[425188593,1781565049000,-838.12035653,0.00016438,2]
[425188595,1781565049000,-838.12035653,0.00016438,2]
[425188590,1781565049000,-838.12035653,0.00016438,2]
[425188589,1781565049000,-838.12035653,0.00016438,2]
[425188587,1781565049000,-838.12035653,0.00016438,2]
[425188596,1781565049000,-838.12035653,0.00016438,2]
[425188591,1781565049000,-838.12035653,0.00016438,2]
[425188586,1781565049000,-838.12035653,0.00016438,2]
[425188592,1781565049000,-838.12035653,0.00016438,2]
[425188583,1781565049000,-838.12035653,0.00016438,2]
[425188588,1781565049000,-838.12035653,0.00016438,2]
[425188672,1781565050000,-758.645977,0.00016438,2]
[425188668,1781565050000,-382.272043,0.00016438,2]
[425188674,1781565050000,-168.52,0.00016712,2]
[425188656,1781565050000,-829.73915296,0.00016438,2]
[425188673,1781565050000,-300.02,0.00016469,2]
[425188658,1781565050000,-900.0,0.00016438,2]
[425188660,1781565050000,-151.0,0.00016438,2]
[425188657,1781565050000,-200.59799381,0.00016438,2]
[425188659,1781565050000,-151.0,0.00016438,2]
[425188661,1781565050000,-382.272043,0.00016438,2]
[425188667,1781565050000,-382.272043,0.00016438,2]
[425188664,1781565050000,-382.272043,0.00016438,2]
[425188665,1781565050000,-382.272043,0.00016438,2]
[425188677,1781565050000,-150.103,0.00016967,2]
[425188669,1781565050000,-758.645977,0.00016438,2]
[425188666,1781565050000,-382.272043,0.00016438,2]
[425188671,1781565050000,-758.645977,0.00016438,2]
[425188675,1781565050000,-335.47,0.00016767,2]
[425188679,1781565050000,-926.5054416,0.00017,2]
[425188676,1781565050000,-150.234,0.00016967,2]
[425188678,1781565050000,-249.0,0.00016994,2]
[425188680,1781565050000,-7526.63891281,0.00017,2]
[425188681,1781565050000,-1359.0,0.00017036,2]
[425188682,1781565050000,-1228.0,0.00017036,2]
[425188684,1781565050000,-6078.0,0.00017036,2]
[425188655,1781565050000,-829.73915298,0.00016438,2]
[425188663,1781565050000,-382.272043,0.00016438,2]
[425188653,1781565050000,-829.73915298,0.00016438,2]
[425188685,1781565050000,-926.5054416,0.000171,2]
[425188654,1781565050000,-829.73915298,0.00016438,2]
[425188628,1781565050000,-829.73915297,0.00016438,2]
[425188638,1781565050000,-829.73915297,0.00016438,2]
[425188627,1781565050000,-829.73915297,0.00016438,2]
[425188630,1781565050000,-829.73915297,0.00016438,2]
[425188636,1781565050000,-829.73915297,0.00016438,2]
[425188635,1781565050000,-829.73915297,0.00016438,2]
[425188637,1781565050000,-829.73915297,0.00016438,2]
[425188631,1781565050000,-829.73915297,0.00016438,2]
[425188633,1781565050000,-829.73915297,0.00016438,2]
[425188632,1781565050000,-829.73915297,0.00016438,2]
[425188634,1781565050000,-829.73915297,0.00016438,2]
[425188629,1781565050000,-829.73915297,0.00016438,2]
[425188662,1781565050000,-382.272043,0.00016438,2]
[425188640,1781565050000,-829.73915297,0.00016438,2]
[425188650,1781565050000,-829.73915298,0.00016438,2]
[425188639,1781565050000,-829.73915297,0.00016438,2]
[425188642,1781565050000,-829.73915297,0.00016438,2]
[425188648,1781565050000,-829.73915297,0.00016438,2]
[425188649,1781565050000,-829.73915297,0.00016438,2]
[425188647,1781565050000,-829.73915297,0.00016438,2]
[425188643,1781565050000,-829.73915297,0.00016438,2]
[425188644,1781565050000,-829.73915297,0.00016438,2]
[425188645,1781565050000,-829.73915297,0.00016438,2]
[425188646,1781565050000,-829.73915297,0.00016438,2]
[425188652,1781565050000,-829.73915298,0.00016438,2]
[425188651,1781565050000,-829.73915298,0.00016438,2]
[425188641,1781565050000,-829.73915297,0.00016438,2]
[425188683,1781565050000,-3645.0,0.00017036,2]
[425188670,1781565050000,-758.645977,0.00016438,2]
[425188687,1781565050000,-300.02,0.00017128,2]
[425188719,1781565050000,-151.0,0.00018139,2]
[425188723,1781565050000,-151.0,0.00018139,2]
[425188713,1781565050000,-352.0,0.0001805,2]
[425188718,1781565050000,-151.0,0.00018139,2]
[425188717,1781565050000,-151.0,0.00018139,2]
[425188724,1781565050000,-151.0,0.00018139,2]
[425188722,1781565050000,-151.0,0.00018139,2]
[425188726,1781565050000,-151.0,0.00018139,2]
[425188727,1781565050000,-151.0,0.00018139,2]
[425188735,1781565050000,-617.05681199,0.000182,2]
[425188725,1781565050000,-151.0,0.00018139,2]
[425188728,1781565050000,-151.0,0.00018139,2]
[425188720,1781565050000,-151.0,0.00018139,2]
[425188729,1781565050000,-151.0,0.00018139,2]
[425188732,1781565050000,-151.0,0.00018139,2]
[425188734,1781565050000,-151.0,0.00018139,2]
[425188733,1781565050000,-151.0,0.00018139,2]
[425188731,1781565050000,-151.0,0.00018139,2]
[425188736,1781565050000,-1221.77280332,0.000182,2]
[425188742,1781565050000,-1794.78,0.000184,2]
[425188743,1781565050000,-7526.63891281,0.000184,2]
[425188744,1781565050000,-1433.8,0.0001841,2]
[425188738,1781565050000,-89896.17,0.00018356,2]
[425188741,1781565050000,-1221.77280332,0.000184,2]
[425188739,1781565050000,-281.256045,0.00018395,7]
[425188686,1781565050000,-7526.63891281,0.000171,2]
[425188730,1781565050000,-151.0,0.00018139,2]
[425188721,1781565050000,-151.0,0.00018139,2]
[425188740,1781565050000,-617.05681199,0.000184,2]
[425188716,1781565050000,-151.0,0.00018139,2]
[425188689,1781565050000,-209.376913,0.00017267,2]
[425188690,1781565050000,-926.5054416,0.000173,2]
[425188691,1781565050000,-7526.63891281,0.000173,2]
[425188698,1781565050000,-926.5054416,0.000175,2]
[425188694,1781565050000,-1275.0,0.00017333,2]
[425188692,1781565050000,-252.830931,0.0001732,2]
[425188688,1781565050000,-252.830931,0.00017217,2]
[425188714,1781565050000,-2183.0,0.0001805,2]
[425188696,1781565050000,-252.830931,0.00017423,2]
[425188697,1781565050000,-263.201929,0.00017474,7]
[425188695,1781565050000,-383.0,0.00017333,2]
[425188700,1781565050000,-1600.0,0.0001752,2]
[425188710,1781565050000,-617.05681199,0.00018,2]
[425188693,1781565050000,-165.499,0.00017333,2]
[425188737,1781565050000,-7526.63891281,0.000182,2]
[425188715,1781565050000,-151.0,0.00018139,2]
[425188711,1781565050000,-1221.77280332,0.00018,2]
[425188712,1781565050000,-7526.63891281,0.00018,2]
[425188709,1781565050000,-7526.63891281,0.000178,2]
[425188705,1781565050000,-252.830935,0.00017733,2]
[425188708,1781565050000,-900.0,0.00017797,7]
[425188707,1781565050000,-2550.0,0.00017797,2]
[425188704,1781565050000,-252.830931,0.0001763,2]
[425188702,1781565050000,-926.5054416,0.000176,2]
[425188706,1781565050000,-300.02,0.00017787,2]
[425188701,1781565050000,-252.830931,0.00017527,2]
[425188699,1781565050000,-7526.63891281,0.000175,2]
[425188703,1781565050000,-7526.63891281,0.000176,2]
[425188784,1781565051000,-352.0,0.0002005,2]
[425188788,1781565051000,-784.43422086,0.000202,2]
[425188783,1781565051000,-6078.0,0.00020036,2]
[425188794,1781565051000,-784.43422086,0.000204,2]
[425188781,1781565051000,-1228.0,0.00020036,2]
[425188775,1781565051000,-214.11,0.0002,2]
[425188782,1781565051000,-3645.0,0.00020036,2]
[425188780,1781565051000,-1359.0,0.00020036,2]
[425188776,1781565051000,-200.0,0.0002,10]
[425188779,1781565051000,-200.0,0.0002,2]
[425188778,1781565051000,-214.0,0.0002,2]
[425188786,1781565051000,-300.0,0.000201,10]
[425188802,1781565051000,-2400.052696,0.00021,2]
[425188787,1781565051000,-3888.0,0.00020133,5]
[425188789,1781565051000,-158.447021,0.00020286,7]
[425188790,1781565051000,-1275.0,0.00020333,2]
[425188793,1781565051000,-2000.0,0.00020384,7]
[425188792,1781565051000,-1433.8,0.00020381,2]
[425188791,1781565051000,-383.0,0.00020333,2]
[425188795,1781565051000,-1794.78,0.000204,2]
[425188797,1781565051000,-784.43422086,0.000206,2]
[425188800,1781565051000,-341.002263,0.00020726,7]
[425188798,1781565051000,-2912.86735333,0.0002063,7]
[425188799,1781565051000,-7687.10303151,0.0002063,7]
[425188777,1781565051000,-282.0,0.0002,2]
[425188785,1781565051000,-2183.0,0.0002005,2]
[425188773,1781565051000,-1473.0,0.0002,2]
[425188756,1781565051000,-678.322243,0.00019178,2]
[425188769,1781565051000,-888.0,0.0002,2]
[425188801,1781565051000,-784.43422086,0.000208,2]
[425188746,1781565051000,-1221.77280332,0.000185,2]
[425188748,1781565051000,-617.05681199,0.000187,2]
[425188758,1781565051000,-678.322243,0.00019178,2]
[425188759,1781565051000,-2000.0,0.00019315,7]
[425188747,1781565051000,-7526.63891281,0.000185,2]
[425188750,1781565051000,-277.047992,0.00018702,7]
[425188749,1781565051000,-1221.77280332,0.000187,2]
[425188752,1781565051000,-2183.0,0.0001905,2]
[425188751,1781565051000,-352.0,0.0001905,2]
[425188753,1781565051000,-4429.60000649,0.00019178,2]
[425188754,1781565051000,-160.93281423,0.00019178,2]
[425188774,1781565051000,-151.0,0.0002,2]
[425188757,1781565051000,-678.322243,0.00019178,2]
[425188760,1781565051000,-582.58,0.00019533,2]
[425188772,1781565051000,-181.0,0.0002,2]
[425188761,1781565051000,-2019.11,0.000199,7]
[425188763,1781565051000,-600.79714257,0.0002,2]
[425188766,1781565051000,-184.0,0.0002,2]
[425188770,1781565051000,-1066.0,0.0002,2]
[425188768,1781565051000,-1248.0,0.0002,2]
[425188764,1781565051000,-2400.052696,0.0002,2]
[425188767,1781565051000,-247.0,0.0002,2]
[425188762,1781565051000,-275.592353,0.00019998,7]
[425188765,1781565051000,-784.43422086,0.0002,2]
[425188771,1781565051000,-308.0,0.0002,2]
[425188755,1781565051000,-678.322243,0.00019178,2]
[425188796,1781565051000,-4858.0,0.00020429,5]
[425188745,1781565051000,-617.05681199,0.000185,2]
[425188805,1781565051000,-247.0,0.00021,2]
[425188836,1781565051000,-288.75019747,0.00021918,2]
[425188832,1781565051000,-150.0,0.00021918,2]
[425188834,1781565051000,-150.0,0.00021918,2]
[425188838,1781565051000,-2011.13458229,0.00021999,10]
[425188837,1781565051000,-298.5,0.00021994,2]
[425188840,1781565051000,-2400.052696,0.00022,2]
[425188844,1781565051000,-308.0,0.00022,2]
[425188842,1781565051000,-247.0,0.00022,2]
[425188849,1781565051000,-282.0,0.00022,2]
[425188845,1781565051000,-5790.0,0.00022,2]
[425188846,1781565051000,-181.0,0.00022,2]
[425188848,1781565051000,-151.0,0.00022,2]
[425188835,1781565051000,-150.0,0.00021918,2]
[425188843,1781565051000,-888.0,0.00022,2]
[425188851,1781565051000,-200.0,0.00022,2]
[425188850,1781565051000,-214.0,0.00022,2]
[425188853,1781565051000,-352.0,0.0002205,2]
[425188852,1781565051000,-1958.1,0.00022,2]
[425188854,1781565051000,-2183.0,0.0002205,2]
[425188858,1781565051000,-776.55,0.00022466,2]
[425188857,1781565051000,-1237.0,0.00022415,7]
[425188855,1781565051000,-1433.8,0.00022353,2]
[425188856,1781565051000,-398.96534459,0.00022407,2]
[425188860,1781565051000,-2000.0,0.00022521,7]
[425188859,1781565051000,-1694.28,0.00022466,2]
[425188803,1781565051000,-869.3812221,0.00021,2]
[425188847,1781565051000,-1473.0,0.00022,2]
[425188833,1781565051000,-150.0,0.00021918,2]
[425188841,1781565051000,-184.0,0.00022,2]
[425188831,1781565051000,-150.0,0.00021918,2]
[425188830,1781565051000,-150.0,0.00021918,2]
[425188807,1781565051000,-308.0,0.00021,2]
[425188806,1781565051000,-888.0,0.00021,2]
[425188809,1781565051000,-2282.30540784,0.00021,2]
[425188808,1781565051000,-181.0,0.00021,2]
[425188811,1781565051000,-151.0,0.00021,2]
[425188816,1781565051000,-2183.0,0.0002105,2]
[425188813,1781565051000,-214.0,0.00021,2]
[425188812,1781565051000,-282.0,0.00021,2]
[425188814,1781565051000,-200.0,0.00021,2]
[425188810,1781565051000,-1473.0,0.00021,2]
[425188815,1781565051000,-352.0,0.0002105,2]
[425188819,1781565051000,-869.3812221,0.000214,2]
[425188804,1781565051000,-184.0,0.00021,2]
[425188817,1781565051000,-869.3812221,0.000212,2]
[425188818,1781565051000,-335.47,0.00021205,2]
[425188829,1781565051000,-150.0,0.00021918,2]
[425188839,1781565051000,-500.0,0.00022,3]
[425188825,1781565051000,-500.0,0.00021913,2]
[425188822,1781565051000,-175.0,0.00021472,3]
[425188827,1781565051000,-500.0,0.00021913,2]
[425188828,1781565051000,-5000.0,0.00021918,2]
[425188826,1781565051000,-500.0,0.00021913,2]
[425188823,1781565051000,-869.3812221,0.000216,2]
[425188821,1781565051000,-177.0,0.00021472,3]
[425188820,1781565051000,-2000.0,0.00021452,7]
[425188824,1781565051000,-869.3812221,0.000219,2]
[425188901,1781565052000,-500.0,0.00023944,2]
[425188900,1781565052000,-2000.0,0.00023589,7]
[425188896,1781565052000,-383.0,0.00023333,2]
[425188892,1781565052000,-160.0,0.00023287,2]
[425188898,1781565052000,-315.0,0.00023566,2]
[425188890,1781565052000,-500.0,0.00023247,2]
[425188889,1781565052000,-490.11382342,0.00023247,2]
[425188894,1781565052000,-150.0,0.00023288,2]
[425188895,1781565052000,-1275.0,0.00023333,2]
[425188904,1781565052000,-184.0,0.00024,2]
[425188897,1781565052000,-315.0,0.00023566,2]
[425188906,1781565052000,-888.0,0.00024,2]
[425188910,1781565052000,-42169.11,0.00024,2]
[425188903,1781565052000,-2400.052696,0.00024,2]
[425188908,1781565052000,-181.0,0.00024,2]
[425188905,1781565052000,-247.0,0.00024,2]
[425188902,1781565052000,-573.0,0.00023963,5]
[425188909,1781565052000,-1473.0,0.00024,2]
[425188911,1781565052000,-282.0,0.00024,2]
[425188912,1781565052000,-214.0,0.00024,2]
[425188913,1781565052000,-200.0,0.00024,2]
[425188918,1781565052000,-985.76,0.00024174,2]
[425188916,1781565052000,-152.0,0.00024104,3]
[425188921,1781565052000,-549.36,0.00024658,2]
[425188899,1781565052000,-293.26341359,0.00023566,2]
[425188907,1781565052000,-308.0,0.00024,2]
[425188891,1781565052000,-500.0,0.00023247,2]
[425188861,1781565052000,-500.0,0.0002257,2]
[425188888,1781565052000,-2200.58672116,0.0002305,2]
[425188863,1781565052000,-500.0,0.0002257,2]
[425188864,1781565052000,-13560.96092902,0.0002258,7]
[425188862,1781565052000,-500.0,0.0002257,2]
[425188867,1781565052000,-633.0,0.000228,2]
[425188865,1781565052000,-20286.38652202,0.0002258,7]
[425188866,1781565052000,-310.0,0.000228,2]
[425188868,1781565052000,-500.0,0.00022849,2]
[425188874,1781565052000,-888.0,0.00023,2]
[425188876,1781565052000,-181.0,0.00023,2]
[425188871,1781565052000,-2400.052696,0.00023,2]
[425188869,1781565052000,-1794.78,0.000229,7]
[425188875,1781565052000,-308.0,0.00023,2]
[425188893,1781565052000,-153.14,0.00023288,2]
[425188872,1781565052000,-184.0,0.00023,2]
[425188870,1781565052000,-200.0,0.00022979,2]
[425188879,1781565052000,-282.0,0.00023,2]
[425188877,1781565052000,-1473.0,0.00023,2]
[425188880,1781565052000,-214.0,0.00023,2]
[425188885,1781565052000,-6078.0,0.00023036,2]
[425188878,1781565052000,-160.0,0.00023,2]
[425188886,1781565052000,-382.0,0.00023041,5]
[425188883,1781565052000,-1228.0,0.00023036,2]
[425188881,1781565052000,-200.0,0.00023,2]
[425188887,1781565052000,-357.3844317,0.0002305,2]
[425188882,1781565052000,-1359.0,0.00023036,2]
[425188884,1781565052000,-3645.0,0.00023036,2]
[425188873,1781565052000,-247.0,0.00023,2]
[425188922,1781565052000,-212.696934,0.00024658,2]
[425188915,1781565052000,-27448.1955,0.0002408,7]
[425188919,1781565052000,-3537.31,0.00024174,2]
[425188949,1781565052000,-160.0,0.00024976,3]
[425188956,1781565052000,-296.80448742,0.00025,2]
[425188950,1781565052000,-200.0,0.00025,2]
[425188951,1781565052000,-253.59966885,0.00025,2]
[425188953,1781565052000,-310.64031093,0.00025,2]
[425188954,1781565052000,-184.0,0.00025,2]
[425188957,1781565052000,-216.53699946,0.00025,2]
[425188961,1781565052000,-252.86,0.00025,2]
[425188962,1781565052000,-252.86,0.00025,2]
[425188964,1781565052000,-252.86,0.00025,2]
[425188966,1781565052000,-1794.78,0.000251,7]
[425188959,1781565052000,-215.0,0.00025,2]
[425188963,1781565052000,-252.86,0.00025,2]
[425188960,1781565052000,-252.86,0.00025,2]
[425188958,1781565052000,-4000.0,0.00025,2]
[425188965,1781565052000,-206.0,0.00025073,2]
[425188968,1781565052000,-764.0,0.00025115,5]
[425188967,1781565052000,-1682.59,0.000251,14]
[425188969,1781565052000,-2327.0,0.00025153,3]
[425188970,1781565052000,-180.0,0.00025186,2]
[425188971,1781565052000,-4567.89,0.00025215,2]
[425188973,1781565052000,-615.30223761,0.00025397,2]
[425188972,1781565052000,-2327.0,0.00025295,3]
[425188974,1781565052000,-152.0,0.00025399,4]
[425188914,1781565052000,-150.0,0.00024,2]
[425188952,1781565052000,-897.05539555,0.00025,2]
[425188955,1781565052000,-1475.30381491,0.00025,2]
[425188975,1781565052000,-500.0,0.00025403,2]
[425188947,1781565052000,-1958.1,0.00024734,7]
[425188948,1781565052000,-582.57994449,0.00024899,2]
[425188917,1781565052000,-701.65,0.00024174,2]
[425188934,1781565052000,-201.788527,0.00024658,2]
[425188924,1781565052000,-212.696934,0.00024658,2]
[425188923,1781565052000,-212.696934,0.00024658,2]
[425188927,1781565052000,-151.0,0.00024658,2]
[425188929,1781565052000,-151.0,0.00024658,2]
[425188928,1781565052000,-151.0,0.00024658,2]
[425188930,1781565052000,-151.0,0.00024658,2]
[425188925,1781565052000,-212.696934,0.00024658,2]
[425188933,1781565052000,-201.788527,0.00024658,2]
[425188931,1781565052000,-151.0,0.00024658,2]
[425188926,1781565052000,-151.0,0.00024658,2]
[425188920,1781565052000,-1433.8,0.00024324,2]
[425188935,1781565052000,-201.788527,0.00024658,2]
[425188932,1781565052000,-201.788527,0.00024658,2]
[425188946,1781565052000,-500.0,0.00024663,2]
[425188941,1781565052000,-698.492968,0.00024658,2]
[425188945,1781565052000,-2000.0,0.00024658,7]
[425188939,1781565052000,-698.492968,0.00024658,2]
[425188943,1781565052000,-151.0,0.00024658,2]
[425188942,1781565052000,-151.0,0.00024658,2]
[425188938,1781565052000,-698.492968,0.00024658,2]
[425188936,1781565052000,-1000.0,0.00024658,2]
[425188940,1781565052000,-151.0,0.00024658,2]
[425188937,1781565052000,-698.492968,0.00024658,2]
[425188944,1781565052000,-150.0,0.00024658,2]
[425189010,1781565053000,-400.0,0.0002697,2]
[425189011,1781565053000,-348.0,0.00026994,2]
[425189015,1781565053000,-151.0,0.00027,7]
[425189009,1781565053000,-500.0,0.0002695,2]
[425189006,1781565053000,-600.0,0.0002657,2]
[425189014,1781565053000,-151.0,0.00027,7]
[425189008,1781565053000,-2000.0,0.00026795,7]
[425189005,1781565053000,-1000.0,0.00026548,2]
[425189007,1781565053000,-152.0,0.00026695,5]
[425189012,1781565053000,-151.0,0.00027,7]
[425189013,1781565053000,-151.0,0.00027,7]
[425189018,1781565053000,-151.0,0.00027,7]
[425189016,1781565053000,-151.0,0.00027,7]
[425189020,1781565053000,-151.0,0.00027,7]
[425189022,1781565053000,-151.0,0.00027,7]
[425189025,1781565053000,-151.0,0.00027,7]
[425189024,1781565053000,-151.0,0.00027,7]
[425189021,1781565053000,-151.0,0.00027,7]
[425189019,1781565053000,-151.0,0.00027,7]
[425189023,1781565053000,-151.0,0.00027,7]
[425189027,1781565053000,-151.0,0.00027,7]
[425189036,1781565053000,-151.0,0.00027,7]
[425189035,1781565053000,-151.0,0.00027,7]
[425188998,1781565053000,-955.0,0.00026267,10]
[425189017,1781565053000,-151.0,0.00027,7]
[425189000,1781565053000,-1433.8,0.00026296,2]
[425188991,1781565053000,-3645.0,0.00026036,2]
[425188999,1781565053000,-2327.0,0.00026291,3]
[425189026,1781565053000,-151.0,0.00027,7]
[425188979,1781565053000,-2000.0,0.00025726,7]
[425188980,1781565053000,-207.45,0.00025778,2]
[425188977,1781565053000,-160.0,0.00025615,3]
[425188976,1781565053000,-160.0,0.00025473,3]
[425188978,1781565053000,-335.47,0.00025644,2]
[425188981,1781565053000,-701.65,0.00025786,2]
[425188986,1781565053000,-160.0,0.00025936,3]
[425188983,1781565053000,-3537.31,0.00025786,2]
[425188987,1781565053000,-162.25191701,0.00026027,3]
[425188982,1781565053000,-985.76,0.00025786,2]
[425188984,1781565053000,-42169.11,0.000258,2]
[425188985,1781565053000,-160.0,0.00025844,3]
[425188992,1781565053000,-6078.0,0.00026036,2]
[425188990,1781565053000,-1228.0,0.00026036,2]
[425188989,1781565053000,-1359.0,0.00026036,2]
[425188988,1781565053000,-150.0,0.00026028,2]
[425188994,1781565053000,-500.0,0.00026165,2]
[425189004,1781565053000,-42169.11,0.000265,2]
[425188995,1781565053000,-285.0,0.00026194,7]
[425188997,1781565053000,-2327.0,0.00026256,3]
[425188993,1781565053000,-2327.0,0.00026128,3]
[425188996,1781565053000,-160.0,0.00026256,3]
[425189001,1781565053000,-1275.0,0.00026333,2]
[425189003,1781565053000,-615.30223761,0.00026397,2]
[425189002,1781565053000,-383.0,0.00026333,2]
[425189028,1781565053000,-151.0,0.00027,7]
[425189044,1781565053000,-151.0,0.00027,7]
[425189031,1781565053000,-151.0,0.00027,7]
[425189060,1781565053000,-151.0,0.00027,7]
[425189067,1781565053000,-151.0,0.00027,7]
[425189062,1781565053000,-151.0,0.00027,7]
[425189065,1781565053000,-151.0,0.00027,7]
[425189068,1781565053000,-151.0,0.00027,7]
[425189063,1781565053000,-151.0,0.00027,7]
[425189066,1781565053000,-151.0,0.00027,7]
[425189069,1781565053000,-151.0,0.00027,7]
[425189070,1781565053000,-151.0,0.00027,7]
[425189072,1781565053000,-151.0,0.00027,7]
[425189076,1781565053000,-151.0,0.00027,7]
[425189064,1781565053000,-151.0,0.00027,7]
[425189074,1781565053000,-151.0,0.00027,7]
[425189077,1781565053000,-151.0,0.00027,7]
[425189078,1781565053000,-151.0,0.00027,7]
[425189071,1781565053000,-151.0,0.00027,7]
[425189073,1781565053000,-151.0,0.00027,7]